Entity,Date ,Expense Type,Expense Area,Supplier,Transaction Number,  Amount (�)  
South West Yorkshire NHS Foundation Trust,11-Oct-23,Purchase of Healthcare,AS Collaborative,Nottinghamshire Healthcare NHS Trust,1000057307,"2,940,728"
South West Yorkshire NHS Foundation Trust,17-Oct-23,Purchase of Healthcare,AS Collaborative,Nottinghamshire Healthcare NHS Trust,1000057431,"1,505,372"
South West Yorkshire NHS Foundation Trust,02-Oct-23,Purchase of Healthcare,AS Collaborative,Cheswold Park Hospital,5177,"800,000"
South West Yorkshire NHS Foundation Trust,31-Oct-23,Purchase of Healthcare,AS Collaborative,Cheswold Park Hospital,5188,"750,000"
South West Yorkshire NHS Foundation Trust,11-Oct-23,Purchase of Healthcare,AS Collaborative,Leeds & York Partnership NHS Foundation Trust,1000295,"666,894"
South West Yorkshire NHS Foundation Trust,18-Oct-23,Purchase of Healthcare,AS Collaborative,Cygnet Health Care Ltd,CYGWYS39,"544,330"
South West Yorkshire NHS Foundation Trust,25-Oct-23,Purchase of Healthcare,AS Collaborative,Bradford District Care NHS Foundation Trust,203743,"519,424"
South West Yorkshire NHS Foundation Trust,03-Oct-23,Purchase of Healthcare,AS Collaborative,Partnerships In Care Ltd,D510008367,"332,208"
South West Yorkshire NHS Foundation Trust,18-Oct-23,Purchase of Healthcare,AS Collaborative,Cygnet Health Care Ltd,CYGSYS16,"270,000"
South West Yorkshire NHS Foundation Trust,09-Oct-23,Purchase of Healthcare,AS Collaborative,Waterloo Manor Ltd,HO NHS LS 277,"245,869"
South West Yorkshire NHS Foundation Trust,04-Oct-23,Purchase of Healthcare,AS Collaborative,Rotherham Doncaster & South Humber NHS Foundation Trust,4400000541,"230,447"
South West Yorkshire NHS Foundation Trust,26-Oct-23,Purchase of Healthcare,AS Collaborative,Cheswold Park Hospital,5184,"145,541"
South West Yorkshire NHS Foundation Trust,03-Oct-23,Purchase of Healthcare,AS Collaborative,Partnerships In Care Ltd,D5100082721,"129,788"
South West Yorkshire NHS Foundation Trust,03-Oct-23,Purchase of Healthcare,AS Collaborative,Partnerships In Care Ltd,D510008363,"128,035"
South West Yorkshire NHS Foundation Trust,12-Oct-23,IT Services,Trustwide,Daisy Corporate Services,3I516335,"90,250"
South West Yorkshire NHS Foundation Trust,24-Oct-23,Purchase of Healthcare,Kirklees,Huntercombe Roehampton Hospital Ltd (The),24309916,"84,075"
South West Yorkshire NHS Foundation Trust,11-Oct-23,Purchase of Healthcare,AS Collaborative,Cygnet Health Care Ltd,SYSEC017INV,"81,804"
South West Yorkshire NHS Foundation Trust,18-Oct-23,Drugs,Trustwide,Bradford Teaching Hospitals NHS Foundation Trust,324989,"77,529"
South West Yorkshire NHS Foundation Trust,23-Oct-23,Staff Recharge,Forensic,Wakefield Metropolitan District Council,91315254949,"65,959"
South West Yorkshire NHS Foundation Trust,18-Oct-23,Drugs,Trustwide,Lp Hcs Ltd,HCSLP386,"65,618"
South West Yorkshire NHS Foundation Trust,11-Oct-23,Purchase of Healthcare,AS Collaborative,Leeds & York Partnership NHS Foundation Trust,1000294,"64,961"
South West Yorkshire NHS Foundation Trust,19-Oct-23,Drugs,Trustwide,Lp Hcs Ltd,HCSLP258,"63,742"
South West Yorkshire NHS Foundation Trust,30-Oct-23,Purchase of Healthcare,AS Collaborative,Elysium Healthcare Ltd,128 Q104 06,"62,807"
South West Yorkshire NHS Foundation Trust,24-Oct-23,Vaccines,Trustwide,Aventis Pharma T/A Sanofi,924478832,"57,915"
South West Yorkshire NHS Foundation Trust,23-Oct-23,Purchase of Healthcare,AS Collaborative,Elysium Healthcare Ltd,128 11211,"56,000"
South West Yorkshire NHS Foundation Trust,07-Oct-23,Computer Hardware,Trustwide,Dell Corporation Ltd,7402953245,"55,860"
South West Yorkshire NHS Foundation Trust,07-Oct-23,Computer Hardware,Trustwide,Dell Corporation Ltd,7402953517,"55,860"
South West Yorkshire NHS Foundation Trust,11-Oct-23,Training,Trustwide,Business Services Leeds Ltd,BSL08184,"50,000"
South West Yorkshire NHS Foundation Trust,30-Oct-23,Purchase of Healthcare,AS Collaborative,Elysium Healthcare Ltd,128 Q207 09,"47,891"
South West Yorkshire NHS Foundation Trust,05-Oct-23,Purchase of Healthcare,AS Collaborative,Mersey Care NHS Foundation Trust,72485990,"47,313"
South West Yorkshire NHS Foundation Trust,04-Oct-23,Drugs,Trustwide,NHS Business Services Authority,1000077829,"46,223"
South West Yorkshire NHS Foundation Trust,03-Oct-23,Purchase of Healthcare,AS Collaborative,Partnerships In Care Ltd,D5100082681,"45,155"
South West Yorkshire NHS Foundation Trust,09-Oct-23,Utilities,Trustwide,Edf Energy Customers Ltd,000016797500,"42,799"
South West Yorkshire NHS Foundation Trust,07-Oct-23,Computer Hardware,Trustwide,Dell Corporation Ltd,7402953246,"37,985"
South West Yorkshire NHS Foundation Trust,04-Oct-23,Purchase of Healthcare,AS Collaborative,Partnerships In Care Ltd,D190001081EPC,"36,374"
South West Yorkshire NHS Foundation Trust,18-Oct-23,NHS Recharge,Trustwide,Bradford District Care NHS Foundation Trust,203722,"35,038"
South West Yorkshire NHS Foundation Trust,27-Oct-23,Advocacy Services,Forensic,Cloverleaf Advocacy 2000 Ltd,12447,"31,397"
South West Yorkshire NHS Foundation Trust,11-Oct-23,NHS Recharge,Barnsley,Barnsley Hospital NHS Foundation Trust,6027183,"31,204"
South West Yorkshire NHS Foundation Trust,24-Oct-23,MFD charges,Trustwide,Annodata Ltd,1334189,"30,591"
South West Yorkshire NHS Foundation Trust,24-Oct-23,Purchase of Healthcare,Barnsley,Cygnet Behavioural Health Ltd,APL0308577,"29,850"
South West Yorkshire NHS Foundation Trust,03-Oct-23,Purchase of Healthcare,Kirklees,Ieso Digital Health Ltd,UK001373,"28,672"
South West Yorkshire NHS Foundation Trust,06-Oct-23,Purchase of Healthcare,Calderdale,Priory Hospital East Midlands,D560002218,"26,955"
South West Yorkshire NHS Foundation Trust,02-Oct-23,Purchase of Healthcare,Kirklees,Cheadle Royal Hospital,2900023041,"26,085"
South West Yorkshire NHS Foundation Trust,05-Oct-23,Purchase of Healthcare,Calderdale,Cygnet Health Care Ltd,WKE0312556,"25,916"
South West Yorkshire NHS Foundation Trust,17-Oct-23,Utilities,Trustwide,Edf Energy Customers Ltd,000016760050,"25,445"
